Cogmind - Beta 14 @@@ ROGUE MODE // 2025.03.27 @ 22:15:20 Player: canerib Result: Destroyed by D-53 Grenadier with Mini Grenade Launcher Performance ------------- Evolutions (0) 0 Regions Visited (2) 400 Robots Destroyed (12) 60 Value Destroyed (183) 183 Prototype IDs (2) 40 Alien Tech Used (0) 0 Bonus (0) 0 TOTAL SCORE: 683 Bonus ------- None Cogmind --------- Core Integrity 0/250 Matter 300/300 Energy 100/100 System Corruption 0% Temperature Cool (0) Movement Treading (240) Ox1 Location -10/Mines Parts ------- > --- POWER (1) -------- (None) > --- PROPULSION (2) --- Light Treads Light Treads > --- UTILITY (2) ------ Huge Storage Unit > --- WEAPON (2) ------- (None) > --- INVENTORY (25) --- Light Treads Light Treads Huge Storage Unit High-capacity Matter Pod (200) Sensor Array EM Pulse Gun Small Laser Mining Laser Peak State ------------ > --- POWER ------------ Light Ion Engine > --- PROPULSION ------- Wheel Wheel > --- UTILITY ---------- Huge Storage Unit Seismic Detector > --- WEAPON ----------- Medium Laser Light Assault Rifle > --- INVENTORY -------- Light Treads Light Treads Light Treads Light Treads Huge Storage Unit High-capacity Matter Pod Sensor Array EM Pulse Gun Small Laser Light Assault Rifle [Rating: 8] Favorites ----------- Power Light Ion Engine Engine Light Ion Engine Propulsion Wheel Treads Light Treads Wheel Wheel Utility Seismic Detector Device Seismic Detector Storage Huge Storage Unit Weapon Light Assault Rifle Energy Gun Medium Laser Ballistic Gun Light Assault Rifle Build | -11 -10 -10 ------- Run | Yrd Mat Min Slots Evolved . | . . . Power . | . . . Propulsion . | . . . Utility . | . . . Weapon . | . . . Parts Attached 13 | 7 6 . Power 2 | 1 1 . Engine 2 | 1 1 . Core . | . . . Reactor . | . . . Propulsion 4 | 2 2 . Treads 2 | . 2 . Leg . | . . . Wheel 2 | 2 . . Hover . | . . . Flight . | . . . Utility 3 | 2 1 . Device 1 | 1 . . Storage 2 | 1 1 . Processor . | . . . Hackware . | . . . Protection . | . . . Artifact . | . . . Weapon 4 | 2 2 . Energy Gun 1 | 1 . . Energy Cannon . | . . . Ballistic Gun 3 | 1 2 . Ballistic Cannon . | . . . Launcher . | . . . Special Weapon . | . . . Impact Weapon . | . . . Slashing Weapon . | . . . Piercing Weapon . | . . . Special Melee Weapon . | . . . Unidentified Prototypes . | . . . Parts Lost 8 | . 4 4 Power 2 | . 1 1 Propulsion 2 | . 2 . Utility 1 | . . 1 Weapon 3 | . 1 2 Highest Loss Streak 4 | . 4 4 To Critical Strikes . | . . . Average Slot Usage (%) 98 | . 99 85 Engine 13 | . 13 10 Treads 7 | . 6 28 Wheel 20 | . 21 . Device 13 | . 14 10 Storage 14 | . 14 14 Energy Gun 9 | . 10 . Ballistic Gun 17 | . 17 21 Peak Build Rating 8 | 7 8 7 Average Rating 6 | 5 7 6 On Entrance 4 | . 7 7 Naked Turns . | . . . Heaviest Build 87 | 12 87 86 Greatest Support 40 | 20 40 40 Greatest Overweight (x) 4 | 1 4 2 Average Overweight (x) 2 | . 3 1 Largest Inventory Capacity 25 | 8 25 25 Average Capacity 22 | 7 24 25 Most Carried 10 | 3 10 8 Average Carried 7 | 2 7 8 Final Capacity 25 | 8 25 25 Final Carried 8 | 3 8 8 Class Distribution -------------------- 100% | Mutant Dominant Class ---------------- Mutant | -10/Materials Mutant | -10/Mines Resources | -11 -10 -10 ----------- Run | Yrd Mat Min Matter Collected 583 | 277 306 . Remotely . | . . . Salvage Created 451 | 112 339 . Parts 27 | 7 20 . Haulers Intercepted 1 | . 1 . Recyclers Shooed 2 | 1 1 . Parts Field Recycled . | . . . Retrieved Matter . | . . . Parts Self-Destructed . | . . . Prevented . | . . . Kills | -11 -10 -10 ------- Run | Yrd Mat Min Combat Hostiles Destroyed 6 | . 6 . Guns 6 | . 6 . Classes Destroyed 7 | 2 5 . Worker 1 | . 1 . Tunneler 1 | 1 . . Hauler 1 | . 1 . Recycler 2 | 1 1 . Watcher 1 | . 1 . Swarmer 3 | . 3 . Grunt 3 | . 3 . Best Kill Streak 3 | 2 3 . Combat Bots Only 3 | . 3 . Max Kills in Single Turn 1 | 1 1 . Gunslinging . | . . . Exploded . | . . . Melee . | . . . Uniques/NPCs Destroyed . | . . . Combat | -11 -10 -10 -------- Run | Yrd Mat Min Hostile Shots Fired 70 | . 57 13 Missed 11 | . 9 2 Damage Taken 967 | . 562 405 Core 259 | . 173 86 Absorbed by Shields . | . . . Core Remaining (%) 100 | 100 . . Volleys Fired 60 | 7 53 . Largest 2 | 2 2 . Hottest 70 | 70 70 . Shots Fired 118 | 14 104 . Gun 118 | 14 104 . Cannon . | . . . Launcher . | . . . Special . | . . . Kinetic 73 | 7 66 . Thermal 45 | 7 38 . Explosive . | . . . Electromagnetic . | . . . Robot Hit Streak 22 | 9 22 . Robot Miss Streak 2 | 1 2 . Penetration Max . | . . . Secondary Targets . | . . . Shots Hit Robots 81 | 11 70 . Core Hits 22 | 3 19 . Critical Kills . | . . . Critical Parts Destroyed . | . . . Critical Strikes 5 | 1 4 . Burn 5 | 1 4 . Melee Attacks . | . . . Impact . | . . . Slashing . | . . . Piercing . | . . . Sneak Attacks . | . . . Combat Hostiles . | . . . Follow-up Attacks . | . . . Damage Inflicted 812 | 112 700 . Guns 812 | 112 700 . Cannons . | . . . Explosions . | . . . Melee . | . . . Ramming . | . . . Kinetic 410 | 38 372 . Thermal 402 | 74 328 . Explosive . | . . . Electromagnetic . | . . . Impact . | . . . Slashing . | . . . Piercing . | . . . Highest Corruption . | . . . Average Corruption . | . . . Corruption Purged . | . . . Corruption Blocked . | . . . Overload Shots . | . . . Overflow Damage . | . . . Projectiles . | . . . Explosions . | . . . Melee . | . . . Knockbacks . | . . . Impact . | . . . Kinetic . | . . . Secondary . | . . . Self-Inflicted Damage . | . . . Shots . | . . . Rammed . | . . . Targets Rammed . | . . . Kicked . | . . . Crushed . | . . . Highest Temperature 245 | 90 245 . Average Temperature 91 | 41 98 . Received Heat Transfer 252 | . 252 . Siege Activations . | . . . Robots Corrupted . | . . . Combat Hostiles . | . . . Parts Fried . | . . . Impact Corruptions . | . . . Robots Melted . | . . . Combat Hostiles . | . . . Parts Melted 2 | . 2 . Heat Transferred 1554 | 296 1258 . Parts Sabotaged . | . . . Parts Stolen . | . . . Parts Stripped . | . . . Power Chain Reactions . | . . . Alert | -11 -10 -10 ------- Run | Yrd Mat Min Peak Influence 192 | 10 192 13 Initial 13 | . 6 13 Average 78 | 2 90 9 Maximum Alert Level . | . . . Low Security (%) 100 | 100 100 100 Level 1 . | . . . Level 2 . | . . . Level 3 . | . . . Level 4 . | . . . Level 5 . | . . . High Security . | . . . Max Security . | . . . Squads Dispatched 2 | . 2 . Investigation . | . . . Extermination . | . . . Reinforcement 2 | . 2 . Assault . | . . . Garrison . | . . . Intercept . | . . . Searches Triggered . | . . . Construction Impeded . | . . . Haulers Reinforced . | . . . Active Scanning Responses . | . . . Cargo Convoy Interrupts . | . . . Stealth | -11 -10 -10 --------- Run | Yrd Mat Min Distress Signals . | . . . Communications Jammed . | . . . Distress Signals . | . . . Times Spotted 31 | . 12 19 Peak Tracking Total 22 | . 3 22 Tactical Retreats . | . . . Traps | -11 -10 -10 ------- Run | Yrd Mat Min Traps Triggered . | . . . Indirectly . | . . . Trap Hack Attempts . | . . . Triggered . | . . . Disarmed . | . . . Reprogrammed . | . . . Reused . | . . . Traps Extracted . | . . . Installed . | . . . Triggered . | . . . Machines | -11 -10 -10 ---------- Run | Yrd Mat Min Machines Disabled . | . . . Max in Single Turn . | . . . Machines Repaired . | . . . Machines Dismantled . | . . . Machines Sabotaged . | . . . Overloaded Fab Kills . | . . . Hacking | -11 -10 -10 --------- Run | Yrd Mat Min Machines Accessed 4 | . 4 . Terminals 3 | . 3 . Fabricators . | . . . Repair Stations . | . . . Recycling Units 1 | . 1 . Scanalyzers . | . . . Garrison Access . | . . . Total Hacks 13 | . 13 . Successful 7 | . 7 . Failed 6 | . 6 . Catastrophic 2 | . 2 . Database Lockouts . | . . . Manual 8 | . 8 . Terminals 11 | . 11 . Fabricators . | . . . Repair Stations . | . . . Recycling Units 2 | . 2 . Scanalyzers . | . . . Garrison Access . | . . . Terminal Hacks 3 | . 3 . Prototype ID Bank 1 | . 1 . Registered Components 1 | . 1 . Registered Prototypes 1 | . 1 . Fabricator Hacks . | . . . Repair Station Hacks . | . . . Recycling Unit Hacks 2 | . 2 . Report Inventory 2 | . 2 . Scanalyzer . | . . . Garrison Access Hacks . | . . . Unauthorized Hacks 2 | . 2 . Terminals 2 | . 2 . Botnet 2 | . 2 . Fabricators . | . . . Repair Stations . | . . . Recycling Units . | . . . Scanalyzers . | . . . Garrison Access . | . . . Data Cores Recovered . | . . . Used . | . . . Hacking Detections 3 | . 3 . Full Trace Events . | . . . Feedback Events . | . . . Feedback Blocked . | . . . Robot Schematics Acquired . | . . . Robots Built . | . . . Authchips . | . . . Time . | . . . Total Robot Build Rating . | . . . Part Schematics Acquired . | . . . Parts Built . | . . . Authchips . | . . . Time . | . . . Total Part Build Rating . | . . . Parts Repaired . | . . . Time . | . . . Parts Recycled . | . . . Recycled Matter . | . . . Retrieved Matter . | . . . Retrieved Components . | . . . Parts Scanalyzed . | . . . Part Schematics Acquired . | . . . Parts Damaged . | . . . Bothacking | -11 -10 -10 ------------ Run | Yrd Mat Min Used RIF Installer . | . . . Robots Hacked . | . . . Non-combat . | . . . Combat . | . . . Robot Hacks Applied . | . . . Relay Couplers Released . | . . . Fabnet Peak Effective % . | . . . Robots Rewired . | . . . Allies Hacked . | . . . Hacks Repelled . | . . . Allies | -11 -10 -10 -------- Run | Yrd Mat Min Total Allies . | . . . Largest Group . | . . . Highest-Rated Group . | . . . Highest-Rated Ally . | . . . Total Orders . | . . . Ally Attacks . | . . . Total Damage . | . . . Kills . | . . . Allies Corrupted . | . . . Allies Melted . | . . . Intel | -11 -10 -10 ------- Run | Yrd Mat Min Robot Analysis Total . | . . . Derelict Logs Recovered . | . . . Drone Launches . | . . . Drone Recoveries . | . . . Exploration | -11 -10 -10 ------------- Run | Yrd Mat Min Turns Passed 841 | 77 722 42 Spaces Moved 365 | 54 297 14 Core 4 | 4 . . Treads 61 | . 47 14 Legs . | . . . Wheels 300 | 50 250 . Hover . | . . . Flight . | . . . Fastest Speed 50 | 50 80 240 Average Speed 157 | 81 164 308 Slowest Speed 320 | 100 320 320 Overloaded Moves . | . . . Propulsion Burnouts . | . . . Robots Hopped . | . . . Cave-ins Triggered . | . . . Exploration Rate (%) 25 | 4 64 9 Regions Visited 2 Branch Regions 1 Pre-discovered Areas . | . . . Known Exits Taken . | . . . Unknown Exits Taken 2 | 1 1 . Scrap Searched . | . . . Spaces Dug . | . . . Terrain Destroyed . | . . . Melee . | . . . Projectile . | . . . AOE . | . . . Terrain Rammed . | . . . Walls Destroyed . | . . . Machines Disabled . | . . . Actions | -11 -10 -10 --------- Run | Yrd Mat Min Total 525 | 70 441 14 Wait 78 | . 78 . Move 363 | 53 296 14 Hop . | . . . Pick Up 10 | 3 7 . Fast Attach 8 | 7 1 . Attach 3 | . 3 . Detach . | . . . Swap 2 | . 2 . Drop 1 | . 1 . Fire 60 | 7 53 . Melee . | . . . Ram . | . . . Kick . | . . . Crush . | . . . Escape Stasis . | . . . Rewire . | . . . Trap . | . . . Miscellaneous . | . . . Route ------- -11/Scrapyard -10/Materials (discovered 4 exits: [*Mat x2] / [*Min x2]) -10/Mines History --------- Turn | Location | Event 12 | -11/Scrapyard | Discovered new exit (range 15) 78 | -11/Scrapyard | Entered Materials 280 | -10/Materials | Discovered new exit (range 9) 319 | -10/Materials | Build established: Mutant 493 | -10/Materials | Discovered new exit (range 15) 551 | -10/Materials | Discovered new exit (range 5) 618 | -10/Materials | Core integrity fell below 50% 670 | -10/Materials | Lost 4 parts (1p2n1w) 748 | -10/Materials | Discovered new exit (range 8) 800 | -10/Materials | Entered Mines 811 | -10/Mines | Assembled infested the area 816 | -10/Mines | Assisted by a Guerilla fighting off Assembled 839 | -10/Mines | Core integrity fell below 20% 842 | -10/Mines | Destroyed by D-53 Grenadier with Mini Grenade Launcher Last Messages --------------- 00833_ E5-35S(h) destroyed. 00835_ as-05574 destroyed. 00835_ as-18855 destroyed. 00835_ as-31879 destroyed. 00835_ as-54266 destroyed. 00835_ K-01 Serf collects debris. 00836_ as-73459 destroyed. 00836_ as-25772 destroyed. 00836_ K-01 Serf destroyed. 00836_ as-58149 destroyed. 00837_ The unstable cave ceiling collapses. 00838_ K-01 Serf collects debris. 00838_ Lgt. Assault Rifle destroyed. 00839_ Lgt. Ion Engine destroyed. 00840_ as-30256 destroyed. 00840_ as-19049 destroyed. 00840_ as-95901 destroyed. 00840_ T-07 Excavator is excavating. 00842_ The unstable cave ceiling collapses. 00842_ as-94698 destroyed. Map ----- +----------------------------------------------------+ | ?????????????????????????????????????????????????? | | ?????????????????????????????????????????????????? | | ?????????????????????????????????????????????????? | | ?????????????????????????????????????????????????? | | ?????????????????????????????????????????????????? | | ?????????????????????????????????????????????????? | | ?????????????????????????????????????????????????? | | ??????????????????????????????#??????????????????? | | ?????????????????????????????? ??????????????????? | | ?????????????????????????????? ??????????????????? | | ?????????????????????????????? ??????????????????? | | ?????????????????????????????? ??????????????????? | | ?????????????????????????????? #?????????????????? | | ??????????????????????????????a#?????????????????? | | ???????????????????????????###a####??????????????? | | ??????????????????????????? a #??????????????? | | ??????????????????????????? ###????????????? | | ??????????????????????????# a% ?????????????? | | ?????????????????????????# % ##?????????????? | | ???????????????????????### % #?????????????? | | ???????????????????????# #?????????????? | | ?????????????????????### #??????????????? | | ??????????????????# ## % ###?????????????? | | ??????????????????# % dd =k%= #?????????????? | | ??????????????????### # ## #?????????????? | | ????????????????????# @ ## #?????????????? | | ????????????????????# # ### #####?????????? | | ????????????????????# #?????????? | | ????????????????????? t###### #?????????? | | ????????????????????# ?????# #?????????? | | ????????????????????##??????# """ """ #?????????? | | ????????????????????????????# """ """ #?????????? | | ????????????????????????????# """ """ #?????????? | | ????????????????????????????# #?????????? | | ????????????????????????????# #?????????? | | ?????????????????????????????###########?????????? | | ?????????????????????????????????????????????????? | | ?????????????????????????????????????????????????? | | | | | | | | | | | | | | | | | | | | | | | | | +----------------------------------------------------+ Best States ------------- Heat Dissipation 25 Energy Generation 10 Energy Capacity 125 Matter Stores 300 Matter Capacity 300 Sight Range 16 Terrain Scan Density 10 Evasion (%) 44 Recoil Reduction 2 Item Schematics ----------------- None Robot Schematics ------------------ None Fabricated ------------ Nothing Alien Tech Used ----------------- None Achievements -------------- None Challenges ------------ None Game ------ Seed DrainedBattleStick Manual? 0 Play Time 00:08:00 Cumulative 85.1 hours Start 2025.03.27 @ 22:07:38 End 2025.03.27 @ 22:15:20 Sessions 1 Manual Loads 0 Difficulty Rogue Special Mode None Game No. 134 Rogue 134 Adventurer 0 Explorer 0 Win Type - Total 1 Types 1/0/0/0/0/0/0/0/0 Lore% 31 Gallery% 47 Achievement% 41 Wizard Run 0 Options --------- Layout 1 ASCII 1 Keyboard 0 Movement Numpad Keybinds 0 Fullscreen 1 Font 24/Smallcaps Map View 50x35 Zoom Use 0% Tactical HUD 1 Map Filters NONE Filters NONE Steam 1 RUN: 02670100-0120-446e-b25b-7521c18b9404